fUST/lending_fUST_20250127
["ID","MTS","AMOUNT","RATE_DAILY","PERIOD"]
[350539638,1737954551830,-160.91,0.00020547,2]
[350539639,1737954551852,-500.0,0.00020547,2]
[350539640,1737954551874,-548.37,0.00020547,2]
[350539641,1737954551897,-500.0,0.00020684,2]
[350539642,1737954551920,-500.0,0.00020684,2]
[350539643,1737954551942,-621.67,0.00020684,2]
[350539644,1737954551963,-500.0,0.00020684,2]
[350539645,1737954551985,-500.0,0.00020684,2]
[350539646,1737954552006,-500.0,0.00020684,2]
[350539647,1737954552029,-500.0,0.00020684,2]
[350539648,1737954552052,-500.0,0.00020821,2]
[350539649,1737954552074,-500.0,0.00020821,2]
[350539650,1737954552096,-360.47,0.00020821,2]
[350539651,1737954552118,-500.0,0.00020821,2]
[350539652,1737954552139,-500.0,0.00020821,2]
[350539653,1737954552162,-500.0,0.00020821,2]
[350539654,1737954552182,-175.41562983,0.000209,2]
[350539655,1737954552205,-500.0,0.00020958,2]
[350539656,1737954552227,-309.04,0.00020958,2]
[350539657,1737954552249,-173.07,0.00020958,2]
[350539658,1737954552271,-500.0,0.00020958,2]
[350539659,1737954552293,-500.0,0.00020958,2]
[350539660,1737954552318,-339.41427614,0.00020999,2]
[350539661,1737954552339,-50432.39248862,0.00021,5]
[350539662,1737954552362,-3936.64200018,0.00021,5]
[350539663,1737954552382,-838430.98289444,0.00021,2]
[350539664,1737954560134,-500.0,0.00019999,2]
[350539665,1737954560157,-500.0,0.00019999,2]
[350539666,1737954560179,-500.0,0.00019999,2]
[350539667,1737954560202,-500.0,0.00019999,2]
[350539668,1737954560223,-500.0,0.00020136,2]
[350539669,1737954560249,-148.98604736,0.00020273,2]
[350539670,1737954566096,-500.0,0.00019999,2]
[350539671,1737954566117,-351.01395264,0.00020273,2]
[350539672,1737954566137,-500.0,0.0002041,2]
[350539673,1737954566158,-500.0,0.00020547,2]
[350539674,1737954566179,-500.0,0.00020684,2]
[350539675,1737954566199,-484.58,0.00020821,2]
[350539676,1737954566219,-135020.87961266,0.00021,2]
[350539707,1737954636566,-234.60414598,0.00018711,2]
[350539709,1737954636577,-234.60414598,0.000189,2]
[350539711,1737954636585,-286.0867239,0.00019455,2]
[350539713,1737954636595,-300.0,0.00019998,2]
[350539715,1737954636604,-504.03436663,0.00019999,2]
[350539717,1737954636613,-476.31980295,0.00019999,2]
[350539719,1737954636622,-271.35081456,0.00019999,2]
[350539722,1737954636633,-228.64918544,0.00019999,2]
[350539724,1737954636643,-34.04932002,0.00019999,2]
[350539726,1737954636654,-465.95067998,0.00019999,2]
[350539728,1737954636663,-500.0,0.00019999,2]
[350539730,1737954636673,-500.0,0.00019999,2]
[350539732,1737954636682,-1917.5,0.00019999,2]
[350539734,1737954636691,-500.0,0.00019999,2]
[350539736,1737954636700,-500.0,0.00019999,2]
[350539738,1737954636709,-500.0,0.00019999,2]
[350539740,1737954636718,-222.68813611,0.00019999,2]
[350539742,1737954636728,-755.37,0.0002,2]
[350539745,1737954636736,-500.0,0.00020136,2]
[350539748,1737954636746,-336.07,0.00020136,2]
[350539750,1737954636754,-1917.5,0.00020136,2]
[350539752,1737954636764,-500.0,0.00020136,2]
[350539754,1737954636773,-236.51369761,0.00020136,2]
[350539756,1737954636784,-263.48630239,0.00020136,2]
[350539758,1737954636794,-500.0,0.00020136,2]
[350539760,1737954636803,-200.6926653,0.00020174,2]
[350539762,1737954636812,-177.13,0.00020273,2]
[350539764,1737954636821,-101.75535828,0.00020273,2]
[350539767,1737954636833,-251.0,0.00020273,2]
[350539915,1737954638561,-1564.74464172,0.00020273,2]
[350539916,1737954638570,-500.0,0.00020273,2]
[350539917,1737954638580,-500.0,0.00020273,2]
[350539918,1737954638589,-166.85,0.00020273,2]
[350539919,1737954638599,-1917.5,0.0002041,2]
[350539920,1737954638608,-500.0,0.0002041,2]
[350539921,1737954638617,-500.0,0.0002041,2]
[350539923,1737954638627,-1917.5,0.00020547,2]
[350539925,1737954638636,-500.0,0.00020547,2]
[350539927,1737954638645,-550.05,0.00020547,2]
[350539928,1737954638654,-1917.5,0.00020684,2]
[350539929,1737954638663,-500.0,0.00020684,2]
[350539930,1737954638674,-1917.5,0.00020821,2]
[350539931,1737954638683,-500.0,0.00020821,2]
[350539932,1737954638692,-1917.5,0.00020958,2]
[350539933,1737954638701,-635.93,0.00020958,2]
[350539934,1737954638711,-6007.95496961,0.00021,2]
[350540051,1737954639883,-3901.85591803,0.00021,2]
[350540081,1737954642325,-18317.10926704,0.00021,2]
[350540082,1737954642335,-500.0,0.00021095,2]
[350540083,1737954642344,-273.30007091,0.00021095,2]
[350540084,1737954642353,-1917.5,0.00021095,2]
[350540085,1737954642364,-500.0,0.00021232,2]
[350540086,1737954642374,-1917.5,0.00021232,2]
[350540087,1737954642384,-500.0,0.00021369,2]
[350540088,1737954642395,-1917.5,0.00021369,2]
[350540089,1737954642404,-296.001,0.0002139,2]
[350540090,1737954642413,-193.82,0.00021506,2]
[350540091,1737954642423,-1917.5,0.00021506,2]
[350540092,1737954642433,-6345.0,0.000216,4]
[350540093,1737954642443,-1917.5,0.00021643,2]
[350540094,1737954642452,-420.0,0.00021776,2]
[350540095,1737954642462,-1917.5,0.0002178,2]
[350540096,1737954642471,-500.0,0.00021899,2]
[350540097,1737954642481,-500.0,0.00021899,2]
[350540098,1737954642490,-539.7,0.00021899,2]
[350540099,1737954642500,-577.07766616,0.00021899,2]
[350540100,1737954642509,-500.0,0.00021899,2]
[350540101,1737954642518,-500.0,0.00021899,2]
[350540102,1737954642527,-500.0,0.00021899,2]
[350540103,1737954642537,-500.0,0.00021899,2]
[350540104,1737954642546,-500.0,0.00021899,2]
[350540105,1737954642555,-500.0,0.00021899,2]
[350540106,1737954642564,-500.0,0.00021899,2]
[350540107,1737954642574,-500.0,0.00021899,2]
[350540108,1737954642583,-539.66,0.00021899,2]
[350540109,1737954642592,-569.76,0.00021899,2]
[350540110,1737954642603,-525.90122857,0.00021899,2]
[350540111,1737954642612,-500.0,0.00021899,2]
[350540112,1737954642621,-500.0,0.00021899,2]
[350540113,1737954642630,-500.0,0.00021899,2]
[350540114,1737954642639,-500.0,0.00021899,2]
[350540115,1737954642648,-505.38179914,0.00021899,2]
[350540116,1737954642658,-500.0,0.00021899,2]
[350540117,1737954642667,-500.0,0.00021899,2]
[350540118,1737954642678,-500.0,0.00021899,2]
[350540119,1737954642688,-500.0,0.00021899,2]
[350540120,1737954642697,-500.0,0.00021899,2]
[350540121,1737954642707,-500.0,0.00021899,2]
[350540122,1737954642717,-500.0,0.00021899,2]
[350540123,1737954642726,-500.0,0.00021899,2]
[350540124,1737954642735,-500.0,0.00021899,2]
[350540125,1737954642745,-500.0,0.00021899,2]
[350540126,1737954642753,-500.0,0.00021899,2]
[350540127,1737954642763,-610.06,0.00021899,2]
[350540128,1737954642772,-500.0,0.00021899,2]
[350540129,1737954642781,-500.0,0.00021899,2]
[350540130,1737954642790,-500.0,0.00021899,2]
[350540131,1737954642800,-500.0,0.00021899,2]
[350540132,1737954642809,-500.0,0.00021899,2]
[350540133,1737954642819,-548.33,0.00021899,2]
[350540134,1737954642828,-500.0,0.00021899,2]
[350540135,1737954642837,-500.0,0.00021899,2]
[350540137,1737954642847,-500.0,0.00021899,2]
[350540138,1737954642855,-500.0,0.00021899,2]
[350540139,1737954642864,-500.0,0.00021899,2]
[350540140,1737954642874,-500.0,0.00021899,2]
[350540141,1737954642884,-500.0,0.00021899,2]
[350540142,1737954642893,-500.0,0.00021899,2]
[350540143,1737954642902,-512.91866977,0.00021899,2]
[350540144,1737954642912,-500.0,0.00021899,2]
[350540145,1737954642921,-530.69206462,0.00021899,2]
[350540146,1737954642933,-508.57806212,0.00021899,2]
[350540147,1737954642943,-500.0,0.00021899,2]
[350540148,1737954642953,-500.0,0.00021899,2]
[350540149,1737954642962,-500.0,0.00021899,2]
[350540150,1737954642971,-500.0,0.00021899,2]
[350540151,1737954642981,-500.0,0.00021899,2]
[350540153,1737954642990,-500.0,0.00021899,2]
[350540155,1737954642999,-500.0,0.00021899,2]
[350540157,1737954643009,-500.0,0.00021899,2]
[350540159,1737954643018,-500.0,0.00021899,2]
[350540160,1737954643027,-500.0,0.00021899,2]
[350540161,1737954643037,-500.0,0.00021899,2]
[350540162,1737954643046,-500.0,0.00021899,2]
[350540163,1737954643056,-500.0,0.00021899,2]
[350540164,1737954643065,-500.0,0.00021899,2]
[350540165,1737954643075,-503.37123637,0.00021899,2]
[350540166,1737954643084,-500.0,0.00021899,2]
[350540167,1737954643094,-500.0,0.00021899,2]
[350540168,1737954643104,-500.0,0.00021899,2]
[350540169,1737954643113,-152.37,0.000219,31]
[350540170,1737954643123,-152.37,0.000219,31]
[350540171,1737954643132,-152.37,0.000219,31]
[350540172,1737954643141,-152.37,0.000219,31]
[350540173,1737954643150,-152.37,0.000219,31]
[350540174,1737954643160,-152.37,0.000219,31]
[350540175,1737954643169,-152.37,0.000219,31]
[350540176,1737954643180,-152.37,0.000219,31]
[350540177,1737954643190,-152.37,0.000219,31]
[350540178,1737954643199,-152.37,0.000219,31]
[350540179,1737954643209,-1917.5,0.00021917,2]
[350540180,1737954643219,-313.98,0.00022036,2]
[350540181,1737954643229,-473.48,0.00022036,2]
[350540182,1737954643238,-160.32,0.00022036,2]
[350540183,1737954643247,-185.06,0.00022036,2]
[350540184,1737954643256,-215.82,0.00022036,2]
[350540185,1737954643265,-432.86,0.00022036,2]
[350540187,1737954643274,-338.35796954,0.00022036,2]
[350540188,1737954643285,-291.84,0.00022036,2]
[350540189,1737954643294,-182.26280745,0.00022036,2]
[350540190,1737954643304,-500.0,0.00022036,2]
[350540191,1737954643317,-223.43,0.00022036,2]
[350540192,1737954643327,-164.86,0.00022036,2]
[350540193,1737954643337,-500.0,0.00022036,2]
[350540194,1737954643346,-1917.5,0.00022054,2]
[350540195,1737954643358,-500.0,0.00022173,2]
[350540196,1737954643368,-1917.5,0.00022191,2]
[350540197,1737954643377,-398.1589297,0.00022289,2]
[350540202,1737954643459,-160.0,0.00022299,2]
[350540203,1737954643483,-202.0,0.0002231,2]
[350540204,1737954643493,-158.32,0.00022315,3]
[350540205,1737954643503,-1917.5,0.00022328,2]
[350540206,1737954643513,-175.41562983,0.00022427,2]
[350540207,1737954643522,-1917.5,0.00022465,2]
[350540208,1737954643532,-151.0,0.000225,7]
[350540209,1737954643541,-151.0,0.0002251,7]
[350540210,1737954643550,-151.0,0.0002251,7]
[350540211,1737954643560,-217.960102,0.0002251,7]
[350540212,1737954643570,-151.0,0.0002251,7]
[350540213,1737954643579,-151.0,0.0002251,7]
[350540214,1737954643589,-151.0,0.0002251,7]
[350540215,1737954643598,-292.090067,0.0002251,7]
[350540216,1737954643607,-151.0,0.0002251,7]
[350540217,1737954643617,-151.0,0.0002251,7]
[350540219,1737954643626,-151.0,0.0002251,7]
[350540221,1737954643636,-151.0,0.0002251,7]
[350540223,1737954643645,-290.682038,0.0002251,7]
[350540225,1737954643655,-151.0,0.0002251,7]
[350540227,1737954643664,-151.0,0.0002251,7]
[350540228,1737954643674,-152.119943,0.0002251,7]
[350540230,1737954643686,-151.0,0.0002251,7]
[350540232,1737954643695,-151.0,0.0002251,7]
[350540234,1737954643704,-151.0,0.0002251,7]
[350540236,1737954643714,-151.0,0.0002251,7]
[350540238,1737954643723,-151.0,0.0002251,7]
[350540240,1737954643731,-151.0,0.0002251,7]
[350540242,1737954643741,-151.0,0.0002251,7]
[350540244,1737954643751,-151.0,0.0002251,7]
[350540246,1737954643760,-151.0,0.0002251,7]
[350540248,1737954643769,-151.0,0.0002251,7]
[350540250,1737954643778,-151.0,0.0002251,7]
[350540252,1737954643787,-179.142831,0.0002251,7]
[350540254,1737954643797,-485.14396,0.0002251,7]
[350540256,1737954643806,-485.14396,0.0002251,7]
[350540258,1737954643815,-485.14396,0.0002251,7]
[350540260,1737954643824,-485.14396,0.0002251,7]
[350540262,1737954643833,-485.14396,0.0002251,7]
[350540264,1737954643843,-485.14396,0.0002251,7]
[350540266,1737954643852,-485.14396,0.0002251,7]
[350540268,1737954643861,-485.14396,0.0002251,7]
[350540270,1737954643871,-485.14396,0.0002251,7]
[350540272,1737954643881,-485.14396,0.0002251,7]
[350540274,1737954643890,-485.14396,0.0002251,7]
[350540276,1737954643899,-485.14396,0.0002251,7]
[350540278,1737954643909,-485.14396,0.0002251,7]
[350540280,1737954643918,-485.14396,0.0002251,7]
[350540282,1737954643930,-485.14396,0.0002251,7]
[350540284,1737954643940,-485.14396,0.0002251,7]
[350540286,1737954643949,-485.14396,0.0002251,7]
[350540288,1737954643958,-485.14396,0.0002251,7]
[350540290,1737954643968,-485.14396,0.0002251,7]
[350540292,1737954643977,-485.143953,0.0002251,7]
[350540294,1737954643987,-475.888616,0.0002251,7]
[350540296,1737954643997,-475.888616,0.0002251,7]
[350540298,1737954644006,-475.888616,0.0002251,7]
[350540300,1737954644015,-475.888616,0.0002251,7]
[350540303,1737954644025,-475.888616,0.0002251,7]
[350540305,1737954644035,-475.888616,0.0002251,7]
[350540308,1737954644044,-475.888616,0.0002251,7]
[350540310,1737954644054,-475.888616,0.0002251,7]
[350540312,1737954644063,-475.888616,0.0002251,7]
[350540314,1737954644072,-475.888623,0.0002251,7]
[350540316,1737954644081,-151.0,0.0002251,7]
[350540318,1737954644091,-151.0,0.0002251,7]
[350540320,1737954644100,-151.0,0.0002251,7]
[350540322,1737954644110,-151.0,0.0002251,7]
[350540324,1737954644119,-151.0,0.0002251,7]
[350540326,1737954644128,-151.0,0.0002251,7]
[350540328,1737954644138,-151.0,0.0002251,7]
[350540330,1737954644148,-151.0,0.0002251,7]
[350540332,1737954644157,-151.0,0.0002251,7]
[350540334,1737954644167,-151.0,0.0002251,7]
[350540336,1737954644179,-151.0,0.0002251,7]
[350540338,1737954644188,-151.0,0.0002251,7]
[350540340,1737954644198,-151.0,0.0002251,7]
[350540342,1737954644206,-151.0,0.0002251,7]
[350540344,1737954644216,-151.0,0.0002251,7]
[350540346,1737954644225,-151.0,0.0002251,7]
[350540348,1737954644234,-151.0,0.0002251,7]
[350540350,1737954644244,-244.915059,0.0002251,7]
[350540352,1737954644254,-1104.151689,0.0002251,7]
[350540354,1737954644263,-1104.151689,0.0002251,7]
[350540356,1737954644273,-1104.151689,0.0002251,7]
[350540358,1737954644283,-1104.151689,0.0002251,7]
[350540360,1737954644292,-1104.151689,0.0002251,7]
[350540362,1737954644301,-1104.151689,0.0002251,7]
[350540364,1737954644311,-1104.151689,0.0002251,7]
[350540366,1737954644323,-1104.151689,0.0002251,7]
[350540368,1737954644332,-1104.151689,0.0002251,7]
[350540370,1737954644341,-1104.151689,0.0002251,7]
[350540372,1737954644350,-1104.151689,0.0002251,7]
[350540374,1737954644360,-1104.151689,0.0002251,7]
[350540376,1737954644370,-1104.151689,0.0002251,7]
[350540378,1737954644379,-1104.151689,0.0002251,7]
[350540380,1737954644388,-1104.151689,0.0002251,7]
[350540382,1737954644399,-1104.151689,0.0002251,7]
[350540384,1737954644408,-1104.151689,0.0002251,7]
[350540386,1737954644419,-1104.151689,0.0002251,7]
[350540389,1737954644429,-1104.151689,0.0002251,7]
[350540391,1737954644438,-1104.1516857,0.0002251,7]
[350540392,1737954644447,-160.0,0.0002251,7]
[350540395,1737954644457,-151.0,0.00022514,2]
[350540396,1737954644466,-151.0,0.00022517,7]
[350540399,1737954644475,-151.0,0.00022517,7]
[350540401,1737954644486,-273.88734,0.00022517,7]
[350540403,1737954644496,-151.0,0.00022517,7]
[350540405,1737954644506,-151.0,0.00022517,7]
[350540407,1737954644516,-151.0,0.00022517,7]
[350540409,1737954644525,-151.0,0.00022517,7]
[350540411,1737954644535,-151.0,0.00022517,7]
[350540413,1737954644544,-151.0,0.00022517,7]
[350540415,1737954644553,-151.0,0.00022517,7]
[350540417,1737954644562,-230.464856,0.00022517,7]
[350540419,1737954644571,-151.0,0.00022517,7]
[350540421,1737954644581,-151.0,0.00022517,7]
[350540423,1737954644590,-151.0,0.00022517,7]
[350540425,1737954644599,-151.0,0.00022517,7]
[350540427,1737954644608,-151.0,0.00022517,7]
[350540429,1737954644618,-151.0,0.00022517,7]
[350540431,1737954644627,-151.0,0.00022517,7]
[350540433,1737954644637,-151.0,0.00022517,7]
[350540435,1737954644646,-151.0,0.00022517,7]
[350540437,1737954644655,-151.0,0.00022517,7]
[350540439,1737954644664,-151.0,0.00022517,7]
[350540441,1737954644674,-151.0,0.00022517,7]
[350540443,1737954644687,-151.0,0.00022517,7]
[350540445,1737954644696,-151.0,0.00022517,7]
[350540447,1737954644705,-252.437548,0.00022517,7]
[350540449,1737954644714,-237.5899933,0.00022524,2]
[350540451,1737954644723,-25216.19624431,0.00022525,5]
[350540453,1737954644732,-1968.32100009,0.00022525,5]
[350540455,1737954644742,-940817.49108696,0.00022526,61]
[350540458,1737954644758,-1856.8595925,0.00022526,61]
[350540469,1737954644850,-1277.62259748,0.00022526,61]
[350540471,1737954644861,-149515.91801309,0.00022526,61]
[350540474,1737954644871,-1016.04152899,0.00022526,61]
[350540481,1737954644934,-5018.0,0.00022526,61]
[350540484,1737954644949,-16573.65569736,0.00022526,61]
[350540486,1737954644961,-436.60831032,0.00022526,61]
[350540654,1737954646599,-12988.12326379,0.0002,2]
[350540656,1737954646608,-51236.42153461,0.00022526,61]
[350540659,1737954646620,-6221.19081813,0.00022526,61]
[350540676,1737954646769,-501.9,0.00022526,61]
[350540953,1737954746330,314.67056,0.00013973,2]
[350540968,1737955648113,-300.0,0.0001853,2]
[350540969,1737955648143,-300.0,0.00018717,2]
[350540970,1737955648165,-287.273098,0.00019309,2]
[350540971,1737955648187,-300.0,0.00019484,2]
[350540972,1737955648221,-1344.78457973,0.00019485,2]
[350540973,1737955651094,-426.80704577,0.00019485,2]
[350540974,1737955651137,-7812.1712139,0.00019485,2]
[350540975,1737955651158,-679.84,0.0002,2]
[350540976,1737955651179,-160.0,0.0002,3]
[350540977,1737955651199,-160.0,0.00020126,2]
[350540978,1737955651218,-918.207627,0.00020224,2]
[350540979,1737955651243,-500.0,0.00020272,2]
[350540980,1737955651263,-500.0,0.00020272,2]
[350540981,1737955651281,-150.68,0.00020272,2]
[350540982,1737955651301,-431.87,0.00020409,2]
[350540983,1737955651321,-807.49174594,0.00020426,2]
[350540984,1737955651341,-314.67056,0.00020447,2]
[350540985,1737955651362,-500.0,0.00020682,2]
[350540986,1737955651382,-457.24745645,0.00020682,2]
[350540987,1737955651405,-500.0,0.00020682,2]
[350540988,1737955651425,-202.06997007,0.00020682,2]
[350540989,1737955651446,-500.0,0.00020682,2]
[350540990,1737955651468,-500.0,0.00020682,2]
[350540991,1737955651491,-500.0,0.00020682,2]
[350540992,1737955651511,-500.0,0.00020682,2]
[350540993,1737955651532,-500.0,0.00020682,2]
[350540994,1737955651552,-234.27252423,0.00020682,2]
[350541003,1737955768113,-300.0,0.00018345,2]
[350541004,1737955768134,-190.0,0.00019,2]
[350541005,1737955779143,291.119692,0.00013973,2]
[350541031,1737955832847,-538.32783063,0.00018711,2]
[350541032,1737955832857,-538.32783063,0.000189,2]
[350541033,1737955832866,-31.63623513,0.00019,2]
[350541034,1737955832877,-611.85,0.0002,2]
[350541035,1737955832886,-339.6297755,0.00020034,2]
[350541036,1737955832895,-291.119692,0.00020447,2]
[350541037,1737955832905,-300.0,0.00020681,2]
[350541038,1737955832914,-500.0,0.00020682,2]
[350541039,1737955832924,-500.0,0.00020682,2]
[350541040,1737955832933,-500.0,0.00020682,2]
[350541041,1737955832942,-500.0,0.00020682,2]
[350541042,1737955832951,-500.0,0.00020682,2]
[350541043,1737955832960,-500.0,0.00020683,7]
[350541045,1737955832969,-500.0,0.00020683,2]
[350541047,1737955832979,-500.0,0.00020818,2]
[350541048,1737955832987,-500.0,0.00020818,2]
[350541049,1737955832997,-500.0,0.00020818,2]
[350541050,1737955833006,-648.93,0.00020818,2]
[350541051,1737955833015,-265.72747577,0.00020818,2]
[350541052,1737955833024,-500.0,0.00020819,2]
[350541053,1737955833033,-282.3833044,0.00020819,2]
[350541054,1737955833043,-500.0,0.00020819,2]
[350541055,1737955833052,-153.12,0.00020819,2]
[350541056,1737955833062,-177.72,0.00020819,2]
[350541057,1737955833071,-606.4,0.00020819,2]
[350541058,1737955833081,-368.33,0.00020819,2]
[350541059,1737955833091,-331.77,0.00020819,2]
[350541060,1737955833101,-473.40930979,0.00020819,2]
[350541061,1737955833110,-370.10003,0.00020819,2]
[350541062,1737955833122,-500.0,0.00020819,2]
[350541063,1737955833132,-517.47,0.00020819,2]
[350541064,1737955833142,-500.0,0.00020819,2]
[350541065,1737955833152,-500.0,0.00020819,2]
[350541066,1737955833162,-500.0,0.00020819,2]
[350541067,1737955833171,-500.36179025,0.0002082,2]
[350541068,1737955833181,-500.0,0.00020955,2]
[350541069,1737955833190,-500.0,0.00020955,2]
[350541070,1737955833199,-538.76,0.00020955,2]
[350541071,1737955833209,-500.0,0.00020956,2]
[350541072,1737955833219,-500.0,0.00020956,2]
[350541073,1737955833229,-500.0,0.00020956,2]
[350541074,1737955833239,-500.0,0.00020956,2]
[350541075,1737955833248,-500.0,0.00020999,2]
[350541076,1737955833257,-500.0,0.00020999,2]
[350541077,1737955833266,-3267.90402844,0.00021,2]
[350541078,1737955833276,-500.0,0.00021092,2]
[350541079,1737955833286,-467.11124889,0.00021092,2]
[350541080,1737955833295,-500.0,0.00021093,2]
[350541081,1737955833305,-500.0,0.00021093,2]
[350541082,1737955833314,-500.0,0.00021093,2]
[350541083,1737955833444,-500.0,0.00021093,2]
[350541084,1737955833454,-151.0,0.00021098,6]
[350541085,1737955833463,-500.0,0.00021229,2]
[350541086,1737955833473,-500.0,0.0002123,2]
[350541087,1737955833483,-500.0,0.0002123,2]
[350541088,1737955833492,-460.01382643,0.0002123,2]
[350541089,1737955833501,-500.0,0.0002123,2]
[350541090,1737955833510,-500.0,0.00021366,2]
[350541091,1737955833520,-241.28,0.00021367,2]
[350541092,1737955833529,-540.86,0.00021367,2]
[350541093,1737955833538,-500.0,0.00021367,2]
[350541094,1737955833547,-297.11308959,0.00021368,9]
[350541095,1737955833556,-303.747,0.0002139,2]
[350541096,1737955833565,-171.16,0.00021503,2]
[350541097,1737955833574,-500.0,0.00021504,2]
[350541098,1737955833584,-151.0,0.00021582,7]
[350541099,1737955833593,-500.0,0.00021641,2]
[350541100,1737955833602,-500.0,0.00021778,2]
[350541101,1737955833611,-500.0,0.00021915,2]
[350541102,1737955833620,-2018.27,0.00022,7]
[350541103,1737955833630,-500.0,0.00022052,2]
[350541104,1737955833642,-151.0,0.00022065,7]
[350541105,1737955833651,-500.0,0.00022189,2]
[350541106,1737955833661,-199.0794648,0.00022298,2]
[350541107,1737955833670,-500.0,0.00022326,2]
[350541108,1737955833681,-152.39,0.000224,31]
[350541109,1737955833691,-152.39,0.000224,31]
[350541110,1737955833701,-152.39,0.000224,31]
[350541111,1737955833710,-152.39,0.000224,31]
[350541112,1737955833719,-152.39,0.000224,31]
[350541113,1737955833729,-152.39,0.000224,31]
[350541114,1737955833738,-152.39,0.000224,31]
[350541115,1737955833747,-500.0,0.00022463,2]
[350541116,1737955833758,-420.0,0.00022504,2]
[350541117,1737955833768,-166.31299531,0.00022509,2]
[350541118,1737955833777,-16154.25044385,0.0002251,5]
[350541119,1737955833787,-1394.2478948,0.0002251,5]
[350541120,1737955833797,-150.68,0.0002251,2]
[350541121,1737955833806,-160.0,0.0002251,7]
[350541122,1737955833815,-43042.8667338,0.0002251,61]
[350541123,1737955833829,-1002.43128167,0.0002251,61]
[350541155,1737955839186,-500.0,0.00020818,2]
[350541156,1737955839195,-1369.83567751,0.0002251,61]
[350541157,1737955839207,-3640.79507727,0.0002251,61]
[350541158,1737955839218,-12050.41784184,0.0002251,61]
[350541179,1737955843707,-759.50834652,0.0002251,61]
[350541180,1737955843718,-435.40329744,0.0002251,61]
[350541183,1737955844064,-7206.16818369,0.0002251,61]
[350541184,1737955844383,233.122321,0.00013699,2]
[350541189,1737955846721,-624.7826615,0.00022285,2]
[350541191,1737955847147,-47.42300509,0.00022285,2]
[350541192,1737955847214,-46.04955604,0.00022285,2]
[350541193,1737955847229,-810.64785536,0.00022285,2]
[350541194,1737955847240,-1913.97714599,0.00022285,2]
[350541195,1737955847249,-1242.622854,0.0002251,61]
[350541196,1737955847363,-281.33974197,0.0002251,61]
[350541197,1737955847375,-19634.36895257,0.0002251,61]
[350541198,1737955847389,-23608.00248,0.0002251,61]
[350541199,1737955847401,-29399.99940971,0.0002251,61]
[350541211,1737956759258,233.122321,0.00013699,2]
[350541212,1737956805798,262.007722,0.00013973,2]
[350541219,1737956963148,-178.68623914,0.00019634,2]
[350541221,1737956974151,-69.37657086,0.00019634,2]
[350541222,1737956974172,-550.67,0.0002,2]
[350541223,1737956974194,-500.0,0.00020164,2]
[350541224,1737956974216,-358.88522042,0.0002041,2]
[350541225,1737956974239,-191.20586187,0.00020447,2]
[350541279,1737957036061,-239.25681361,0.000189,2]
[350541280,1737957036072,-495.6,0.0002,2]
[350541281,1737957036081,-752.33090565,0.00020447,2]
[350541282,1737957036147,-247.66909435,0.00020447,2]
[350541283,1737957036156,-70.80186013,0.00020447,2]
[350541284,1737957036165,-300.0,0.00020995,2]
[350541285,1737957036175,-500.0,0.00020996,2]
[350541286,1737957036184,-500.0,0.00020996,2]
[350541287,1737957036193,-500.0,0.00020996,2]
[350541288,1737957036203,-500.0,0.00020996,2]